bitfinex/quotes_ETHUSD_20260213
["timestamp","ask_amount","ask_price","bid_price","bid_amount"]
[1770959741584,0.45275097,1939.7,1938.5,0.45521763]
[1770959742104,0.45275097,1939.7,1938.6,0.45521763]
[1770959742897,1.74161363,1939.7,1938.7,1.74474153]
[1770959743094,0.45275097,1939.6,1938.7,1.74474153]
[1770959744701,3.25979677,1939.8,1938.7,1.74474153]
[1770959744901,3.71254774,1939.8,1938.7,1.74474153]
[1770959745112,3.71254774,1939.8,1938.8,0.45521763]
[1770959745113,0.45275097,1939.8,1938.8,0.45521763]
[1770959745305,2.139545,1939.8,1938.8,0.45521763]
[1770959746200,0.45275097,1939.8,1938.8,0.45521763]
[1770959747490,1.74154812,1939.8,1938.9,1.28939089]
[1770959748502,0.45275097,1939.8,1938.9,1.74460852]
[1770959748805,3.522051,1939.9,1939.0,0.45521763]
[1770959748976,1.968,1940.0,1939.0,0.45521763]
[1770959749573,1.968,1940.0,1939.1,1.2892579]
[1770959749975,1.968,1940.0,1939.1,1.74447553]
[1770959750198,2.41975097,1940.1,1939.2,0.45521763]
[1770959750902,8.386477,1940.0,1939.2,0.45521763]
[1770959751100,0.45275097,1940.0,1939.1,1.2892579]
[1770959752303,1.74147719,1939.9,1938.9,5.15715986]
[1770959752508,0.45275097,1939.8,1938.9,5.15715986]
[1770959752805,0.45275097,1939.8,1939.1,0.001]
[1770959754273,1.2888591,1939.7,1939.1,0.001]
[1770959754490,1.74161007,1939.7,1939.1,0.001]
[1770959755900,0.45275097,1939.6,1939.1,0.001]
[1770959756300,1.288992,1939.5,1939.1,0.001]
[1770959756776,0.45275097,1939.2,1938.3,1.74500765]
[1770959756975,0.45275097,1939.2,1938.4,0.45521763]
[1770959757202,2.41575097,1939.4,1938.4,0.45521763]
[1770959757484,1.963,1939.3,1938.4,0.45521763]
[1770959758481,1.963,1939.3,1938.5,1.74487458]
[1770959758680,2.41475097,1939.4,1938.6,0.45521763]
[1770959759716,3.70381606,1939.4,1938.6,0.45521763]
[1770959759936,1.961,1939.5,1938.6,0.45521763]
[1770959760147,2.41375097,1939.6,1938.6,0.45521763]
[1770959760285,0.932,1939.9,1938.6,0.45521763]
[1770959760286,0.45275097,1939.8,1938.6,0.45521763]
[1770959760603,1.668,1939.9,1938.8,0.47024414]
[1770959761114,0.002,1939.9,1938.8,0.47024414]
[1770959761984,0.002,1939.9,1938.9,0.47024414]
[1770959762289,0.002,1939.9,1939.1,0.47024414]
[1770959762480,0.002,1939.9,1939.3,0.47024414]
[1770959763015,0.002,1939.9,1939.2,1.28919141]
[1770959763318,0.49616723,1939.9,1939.2,1.28919141]
[1770959764589,0.49416723,1939.8,1939.0,1.28927965]
[1770959765087,0.002,1939.9,1939.0,1.75952379]
[1770959765284,1.29073423,1939.9,1939.0,1.75952379]
[1770959765716,1.29073256,1939.9,1939.0,1.75952379]
[1770959766017,0.002,1939.9,1939.1,0.47024414]
[1770959766603,0.002,1939.9,1939.2,1.28919141]
[1770959767792,0.002,1939.9,1939.2,1.75943555]
[1770959769430,0.002,1939.9,1939.2,1.28919141]
[1770959769927,0.49616723,1939.9,1939.2,1.28919141]
[1770959770323,0.002,1939.9,1939.2,1.28919141]
[1770959770507,0.002,1939.9,1939.2,1.75943555]
[1770959772305,0.002,1939.9,1939.3,0.47024414]
[1770959773133,0.49616723,1939.9,1939.2,1.28919141]
[1770959773917,0.49616723,1939.9,1939.1,0.001]
[1770959774837,1.78489497,1939.9,1939.1,0.001]
[1770959776717,0.49416723,1939.8,1939.1,0.001]
[1770959778524,1.78297677,1939.8,1939.1,0.001]
[1770959778954,0.49616723,1939.9,1939.1,0.47124414]
[1770959779315,0.49416723,1939.8,1939.2,0.001]
[1770959780118,0.49616723,1939.8,1939.2,0.001]
[1770959780730,1.78498994,1939.8,1939.2,0.001]
[1770959781148,5.84924723,1939.7,1939.2,0.001]
[1770959781484,0.49416723,1939.7,1939.2,0.001]
[1770959782139,8.78249267,1939.5,1938.8,2.21841154]
[1770959782336,0.49416723,1939.5,1938.8,2.21841154]
[1770959783245,0.49416723,1939.7,1938.8,2.68865568]
[1770959783450,4.742969,1939.7,1938.9,0.47024414]
[1770959783961,1.943,1939.8,1938.9,0.47024414]
[1770959784133,3.373524,1939.7,1938.9,0.47024414]
[1770959784660,2.046312,1939.7,1938.9,0.47024414]
[1770959785756,1.943,1939.8,1939.0,1.28932439]
[1770959786062,0.002,1939.8,1939.1,0.47024414]
[1770959787754,0.002,1939.8,1939.3,0.47024414]
[1770959788168,0.002,1939.8,1939.2,1.28919141]
[1770959789464,0.002,1939.8,1939.2,1.75943555]
[1770959789665,0.002,1939.8,1939.3,0.47024414]
[1770959789860,0.002,1939.8,1939.4,1.28905847]
[1770959791186,0.002,1939.8,1939.2,5.15653178]
[1770959792668,0.002,1939.8,1939.2,5.61428503]
[1770959792868,0.002,1939.8,1939.2,5.61528503]
[1770959793071,0.002,1939.7,1939.2,5.61528503]
[1770959795988,0.002,1939.7,1939.2,5.15753178]
[1770959796192,0.002,1939.7,1939.3,0.4544594]
[1770959796895,0.002,1939.7,1939.4,1.28905847]
[1770959800099,0.002,1940.0,1939.5,0.4544594]
[1770959800392,0.002,1940.0,1939.4,1.28905847]
[1770959803813,0.002,1940.0,1939.6,1.28892555]
[1770959805792,0.46138274,1940.6,1939.8,1.74325205]
[1770959805974,0.46338274,1940.8,1939.9,0.4544594]
[1770959806469,0.002,1940.0,1939.9,2.7984594]
[1770959806669,1.75151257,1940.8,1939.9,2.7984594]
[1770959806895,0.46138274,1940.7,1939.9,2.7984594]
[1770959808074,0.002,1940.8,1940.1,0.4544594]
[1770959810402,0.002,1940.8,1940.2,1.28852695]
[1770959810593,0.002,1940.8,1940.2,1.74298635]
[1770959812840,0.002,1940.8,1940.3,0.4544594]
[1770959814508,0.002,1940.8,1940.5,0.4544594]
[1770959814908,1.921,1941.4,1940.7,0.4544594]
[1770959816800,0.46138274,1941.5,1940.8,1.2881286]
[1770959817182,1.7509465,1941.7,1940.8,1.742588]
[1770959817922,0.46338274,1941.7,1940.9,0.4544594]
[1770959818285,1.75091802,1941.7,1940.9,0.4544594]
[1770959818492,0.46338274,1941.7,1940.9,0.4544594]
[1770959818690,0.002,1941.3,1940.9,0.4544594]
[1770959818910,0.002,1941.3,1941.0,1.28799587]
[1770959819695,0.002,1941.3,1940.8,5.15239004]
[1770959819896,0.46338274,1941.3,1940.8,1.2881286]
[1770959820697,0.46338274,1941.3,1940.6,3.62623442]
[1770959821528,0.46338274,1941.3,1940.6,1.28823442]
[1770959821828,0.002,1941.3,1940.7,0.48491307]
[1770959823125,0.002,1941.3,1940.8,1.77304167]
[1770959823331,0.002,1941.3,1940.9,0.48491307]
[1770959824601,0.002,1941.3,1941.0,0.48491307]
[1770959824796,0.002,1941.3,1940.9,2.341]
[1770959825099,0.002,1941.3,1941.0,1.28799587]
[1770959825906,0.002,1941.7,1941.1,0.48491307]
[1770959826328,0.49355657,1941.7,1941.0,1.28799587]
[1770959826534,0.49355657,1941.7,1941.0,1.77290894]
[1770959826911,1.28766417,1941.5,1940.9,3.62901109]
[1770959827117,0.49155657,1941.4,1940.9,3.62901109]
[1770959827537,0.002,1941.7,1940.9,4.11392416]
[1770959827737,0.002,1941.7,1941.0,0.48491307]
[1770959828446,0.49155657,1941.6,1940.9,3.62901109]
[1770959830311,1.28760227,1941.6,1940.9,3.62901109]
[1770959830517,0.49155657,1941.5,1940.9,3.62901109]
[1770959831216,0.49355657,1941.7,1940.9,3.62901109]
[1770959831416,0.49355657,1941.7,1941.0,0.001]
[1770959831644,0.002,1941.6,1941.0,0.001]
[1770959833047,0.002,1941.6,1941.0,0.48591307]
[1770959833249,0.49155657,1941.4,1941.0,0.001]
[1770959833441,1.77928868,1941.4,1941.0,0.001]
[1770959833761,0.49155657,1941.3,1941.0,0.001]
[1770959838237,8.96725063,1941.6,1941.0,0.001]
[1770959838238,0.002,1941.6,1941.0,0.001]
[1770959839470,0.002,1941.6,1941.0,0.48591307]
[1770959840276,0.002,1941.6,1941.0,2.81491307]
[1770959840854,0.002,1941.6,1941.1,1.28792952]
[1770959843031,0.002,1941.6,1941.1,1.77284259]
[1770959844248,0.002,1941.6,1941.2,0.48591307]
[1770959844644,0.002,1941.5,1941.2,0.48591307]
[1770959844839,0.002,1941.7,1941.3,0.48491307]
[1770959845042,0.002,1941.9,1941.4,0.48491307]
[1770959846349,0.49355657,1941.9,1941.2,0.001]
[1770959846660,0.49355657,1941.9,1941.2,1.28881023]
[1770959847064,0.49355657,1941.9,1941.2,1.7737233]
[1770959847065,0.002,1941.9,1941.2,1.7737233]
[1770959847269,0.002,1941.9,1941.3,0.48491307]
[1770959849371,0.002,1941.9,1941.2,1.28881023]
[1770959850181,0.002,1941.9,1941.3,0.48491307]
[1770959852766,0.002,1941.9,1941.2,0.001]
[1770959852970,0.002,1941.9,1941.3,1.28774945]
[1770959852971,0.45547533,1941.9,1941.3,1.28774945]
[1770959854981,7.01890593,1941.9,1941.2,5.15233063]
[1770959856278,8.30631118,1941.9,1941.2,5.15233063]
[1770959856452,0.002,1941.8,1941.2,5.15233063]
[1770959858283,7.06296081,1941.7,1941.2,0.001]
[1770959860480,6.5634306,1941.7,1941.2,0.001]
[1770959861155,7.06296081,1941.7,1941.2,0.001]
[1770959861355,8.35049784,1941.7,1941.2,0.001]
[1770959861780,7.85096763,1941.7,1941.2,0.001]
[1770959862182,6.5634306,1941.7,1941.2,0.001]
[1770959862679,7.06296081,1941.7,1941.2,0.001]
[1770959863266,8.35050384,1941.7,1941.2,0.001]
[1770959863467,7.06296081,1941.7,1941.2,0.001]
[1770959867198,1.28951978,1941.8,1941.2,0.001]
[1770959867199,0.002,1941.8,1941.2,0.001]
[1770959867359,0.002,1941.8,1941.2,0.49437018]
[1770959867557,6.5634306,1941.7,1941.2,0.49437018]
[1770959867797,6.5634306,1941.7,1941.2,1.78218027]
[1770959868364,6.5634306,1941.7,1941.3,0.001]
[1770959868691,6.5654306,1941.7,1941.3,0.001]
[1770959871283,7.06496081,1941.7,1941.3,0.001]
[1770959873381,6.5654306,1941.7,1941.3,0.001]
[1770959873774,6.5654306,1941.7,1941.3,0.49437018]
[1770959873991,0.002,1941.7,1941.3,0.49437018]
[1770959875822,0.002,1941.7,1941.3,0.001]
[1770959875975,6.5634306,1941.6,1941.3,0.001]
[1770959876874,6.5634306,1941.6,1941.2,0.001]
[1770959877877,6.5634306,1941.6,1941.2,1.28886317]
[1770959878205,0.50153021,1941.7,1941.2,1.28886317]
[1770959878404,0.002,1941.7,1941.3,0.49337018]
[1770959878904,0.002,1941.7,1941.2,1.78223335]
[1770959879107,0.27121537,1942.3,1941.4,0.49337018]
[1770959879275,8.35217186,1942.2,1941.5,2.311]
[1770959879475,7.06496081,1942.2,1941.5,2.80437018]
[1770959879873,8.35218174,1942.2,1941.5,2.80437018]
[1770959880180,8.35218174,1942.2,1941.5,4.0919831]
[1770959880376,7.06296081,1942.0,1941.5,2.311]
[1770959880597,8.96996081,1942.0,1941.4,1.28868398]
[1770959882601,10.25733348,1942.0,1941.4,1.28868398]
[1770959882796,0.45445198,1941.9,1941.4,0.001]
[1770959883486,6.5634306,1941.8,1941.4,0.001]
[1770959883684,1.909,1941.8,1941.4,0.001]
[1770959886615,1.91,1941.9,1941.4,0.49701018]
[1770959887188,1.911,1942.0,1941.4,0.49701018]
[1770959887590,1.911,1942.0,1941.5,1.78367435]
[1770959888206,8.4744306,1942.0,1941.5,1.28766417]
[1770959888412,0.45445198,1941.9,1941.5,1.28766417]
[1770959888613,8.4744306,1942.0,1941.5,1.28766417]
[1770959889711,0.002,1942.1,1941.7,0.49601018]
[1770959889911,1.913,1942.1,1941.5,1.78367435]
[1770959890090,8.93088258,1942.1,1941.5,1.28766417]
[1770959890291,10.21815617,1942.1,1941.5,1.28766417]
[1770959890701,8.93088258,1942.1,1941.5,1.28766417]
[1770959892119,10.21815244,1942.1,1941.4,5.64766688]
[1770959892419,8.93088258,1942.1,1941.4,5.64766688]
[1770959893619,8.93088258,1942.1,1941.5,0.001]
[1770959893818,0.002,1942.0,1941.5,0.001]
[1770959895227,0.002,1942.0,1941.5,0.49701018]
[1770959895723,1.917,1942.0,1941.5,0.49701018]
[1770959897335,1.917,1942.0,1941.6,1.78360803]
[1770959897898,0.002,1942.0,1941.7,0.49601018]
[1770959898126,0.002,1942.0,1941.9,0.49601018]
[1770959898334,0.002,1942.2,1941.9,0.49601018]
[1770959898514,1.915,1942.4,1942.0,0.49601018]
[1770959899236,0.002,1942.4,1942.1,0.49601018]
[1770959899406,0.002,1942.4,1942.2,1.78321026]
[1770959900133,0.002,1942.4,1942.2,1.28720008]
[1770959900704,0.002,1942.4,1942.1,1.28721989]
[1770959901332,0.002,1942.4,1942.0,1.2873048]
[1770959901706,0.002,1942.4,1942.0,0.49601018]
[1770959902103,0.45645198,1942.4,1941.8,1.28742826]
[1770959902409,7.01243734,1942.3,1941.6,1.2875565]
[1770959902738,6.55798536,1942.3,1941.7,0.49601018]
[1770959902909,6.55798536,1942.3,1941.6,1.2875565]
[1770959903110,7.01243734,1942.3,1941.6,1.2875565]
[1770959903840,8.29961053,1942.3,1941.6,1.2875565]
[1770959904138,1.74162517,1942.3,1941.6,1.2875565]
[1770959904336,1.914,1942.4,1941.6,1.78356668]
[1770959904508,10.2135201,1942.4,1941.6,1.78356668]
[1770959905635,7.01243734,1942.2,1941.5,1.28862324]
[1770959906004,6.55798536,1942.0,1941.5,1.28862324]
[1770959906408,6.55798536,1942.0,1941.7,0.001]
[1770959906810,8.47198536,1942.0,1941.7,0.001]
[1770959909739,1.914,1942.0,1941.7,0.001]
[1770959910844,1.917,1942.1,1941.7,0.001]
[1770959911826,1.917,1942.1,1941.7,1.28853154]
[1770959915646,2.40512109,1942.1,1941.7,0.001]
[1770959915946,3.69239536,1942.1,1941.7,0.001]
[1770959916350,2.40512109,1942.1,1941.7,0.001]
[1770959916917,3.69238928,1942.1,1941.7,0.001]
[1770959917422,2.40512109,1942.1,1941.7,0.001]
[1770959918322,3.69239098,1942.1,1941.8,0.001]
[1770959919143,2.40512109,1942.1,1941.8,0.001]
[1770959919746,7.04610645,1942.0,1941.8,0.001]
[1770959920052,0.48812109,1941.9,1941.5,0.001]
[1770959920423,6.55798536,1942.0,1941.5,0.001]
[1770959920618,7.04610645,1942.0,1941.5,0.001]
[1770959921620,0.48812109,1941.9,1941.5,0.001]
[1770959922646,1.77554929,1941.9,1941.5,0.001]
[1770959922850,1.2874282,1941.9,1941.5,0.001]
[1770959923056,0.48812109,1941.9,1941.5,0.001]
[1770959923350,1.925,1941.8,1941.5,0.001]
[1770959923721,6.55798536,1942.0,1941.5,0.001]
[1770959923923,1.925,1941.9,1941.5,0.001]
[1770959925467,6.55798536,1942.2,1941.6,0.45679191]
[1770959925656,1.927,1941.9,1941.6,0.45679191]
[1770959926227,1.927,1941.9,1941.5,0.45779191]
[1770959928060,1.927,1941.9,1941.5,1.74542976]
[1770959930562,1.927,1941.9,1941.6,0.001]
[1770959931959,1.927,1941.9,1941.6,0.45779191]
[1770959932834,1.927,1941.9,1941.6,0.001]
[1770959935160,0.48812109,1941.8,1941.6,0.001]
[1770959935359,0.48812109,1941.7,1941.4,0.001]
[1770959935561,0.48812109,1941.8,1941.4,0.001]
[1770959936844,7.04610645,1941.8,1941.4,0.001]
[1770959937938,0.48812109,1941.8,1941.4,0.001]
[1770959938138,8.48498536,1941.9,1941.4,0.001]
[1770959938358,8.97310645,1941.9,1941.4,0.001]
[1770959938554,10.26050671,1941.9,1941.4,0.001]
[1770959940039,8.97310645,1941.9,1941.4,0.001]
[1770959940240,8.97310645,1941.9,1941.4,0.45779191]
[1770959940241,8.48498536,1941.9,1941.4,0.45779191]
[1770959940763,8.49698536,1941.9,1941.4,0.45779191]
[1770959940952,1.939,1941.9,1941.4,0.45779191]
[1770959942742,1.939,1941.9,1941.5,1.76929234]
[1770959943065,0.002,1941.8,1941.5,1.76929234]
[1770959943564,0.002,1941.8,1941.6,0.48062817]
[1770959944968,0.002,1941.8,1941.6,1.76818504]
[1770959946140,0.002,1941.8,1941.6,1.28755687]
[1770959946337,0.002,1941.8,1941.5,0.001]
[1770959946536,0.46638317,1941.8,1941.5,0.001]
[1770959947379,0.002,1941.8,1941.5,0.001]
[1770959950273,0.46638317,1941.8,1941.5,0.001]
[1770959950645,0.002,1941.8,1941.5,0.001]
[1770959951261,0.002,1941.8,1941.6,1.28759785]
[1770959951473,0.002,1941.8,1941.6,1.76822602]
[1770959953173,0.002,1941.8,1941.5,1.28861042]
[1770959954046,0.002,1941.8,1941.6,0.48062817]
[1770959954258,0.002,1941.8,1941.5,0.001]
[1770959954886,0.46438317,1941.5,1941.3,0.001]
[1770959955054,0.46438317,1941.5,1941.0,0.001]
[1770959955055,6.55798536,1941.4,1941.0,0.001]
[1770959955256,2.40838317,1941.5,1941.0,0.001]
[1770959955692,3.69605019,1941.5,1941.0,0.001]
[1770959955987,7.02236853,1941.3,1941.0,0.001]
[1770959956478,3.69605019,1941.5,1941.0,0.001]
[1770959957177,1.944,1941.5,1941.0,0.001]
[1770959957676,1.944,1941.5,1941.0,1.28899587]
[1770959960585,6.56507513,1941.3,1941.0,0.001]
[1770959960752,3.23167149,1941.5,1940.9,0.001]
[1770959960753,6.56507513,1941.1,1940.9,0.001]
[1770959961678,0.46438317,1941.2,1940.9,0.001]
[1770959962083,1.947,1941.1,1940.9,0.001]
[1770959967596,1.953,1941.3,1941.0,0.48162817]
[1770959968302,0.002,1941.7,1941.3,0.48062817]
[1770959969570,0.002,1941.7,1941.5,0.48062817]
[1770959970203,0.002,1941.7,1941.4,1.2877305]
[1770959970375,0.002,1941.7,1941.4,1.76835867]
[1770959970800,0.002,1941.7,1941.4,1.2877305]
[1770959971582,0.002,1941.7,1941.3,5.15092201]
[1770959972302,0.002,1941.7,1941.3,1.28779683]
[1770959972886,0.002,1941.7,1941.3,1.74630787]
[1770959974086,0.002,1941.7,1941.4,0.48321172]
[1770959974293,0.002,1941.9,1941.4,0.48321172]
[1770959976306,0.002,1941.9,1941.6,0.48321172]
[1770959977315,0.002,1942.2,1941.6,0.48321172]
[1770959978191,0.002,1942.2,1941.8,0.48321172]
[1770959980211,0.002,1942.2,1941.9,1.28739893]
[1770959981308,0.002,1942.2,1941.8,1.28741215]
[1770959982414,0.002,1942.2,1941.7,1.28853154]
[1770959982983,0.46754583,1942.2,1941.7,1.28853154]
[1770959984916,0.46754583,1942.2,1941.7,0.001]
[1770959985612,0.002,1942.2,1941.7,0.001]
[1770959985818,0.002,1942.2,1941.7,0.48421172]
[1770959986035,0.002,1942.3,1941.8,0.48321172]
[1770959987389,0.002,1942.3,1941.9,1.77061065]
[1770959991418,0.002,1942.3,1942.0,0.48321172]
[1770959991592,0.002,1942.3,1942.1,1.28726636]
[1770959992290,0.002,1942.3,1941.8,5.63302879]
[1770959992291,0.002,1942.2,1941.8,0.48321172]
[1770959992616,0.002,1942.2,1941.9,1.28739893]
[1770959993810,0.002,1942.2,1941.9,1.77061065]
[1770959995893,0.002,1942.2,1942.0,0.48321172]
[1770959996221,0.002,1942.2,1941.9,1.28739893]
[1770959999920,0.002,1942.2,1942.0,0.48321172]
[1770960000317,0.002,1942.4,1942.1,0.48321172]
[1770960001029,0.002,1942.4,1942.1,1.77041384]
[1770960001928,0.002,1942.7,1942.4,0.4969898]
[1770960002126,0.002,1942.7,1942.5,6.55917698]
[1770960002326,0.002,1942.6,1942.3,9.36716678]
[1770960002502,0.48938267,1942.9,1942.3,2.8079898]
[1770960002702,0.002,1942.8,1942.3,0.4969898]
[1770960002921,0.002,1942.8,1942.0,1.28731684]
[1770960002922,0.48938267,1942.6,1942.0,1.28731684]
[1770960003227,0.002,1942.5,1942.0,3.59931684]
[1770960003527,0.002,1942.5,1942.0,10.65548362]
[1770960003729,0.002,1942.4,1942.0,10.65648362]
[1770960004032,0.002,1942.2,1942.0,10.65648362]
[1770960004201,0.002,1942.5,1942.0,10.65648362]
[1770960004404,0.002,1942.3,1942.0,10.65648362]
[1770960004800,0.004,1942.3,1942.0,10.65648362]
[1770960005128,0.002,1942.2,1942.0,1.78530664]
[1770960005698,0.48938267,1942.9,1942.2,0.4969898]
[1770960005929,0.004,1942.8,1942.3,6.55917698]
[1770960006605,0.48938267,1942.9,1942.3,6.55917698]
[1770960006812,0.004,1942.8,1942.3,6.55917698]
[1770960007129,0.004,1942.8,1942.3,1.78412361]
[1770960007510,0.004,1942.7,1942.3,1.78412361]
[1770960007710,0.004,1942.9,1942.3,1.78412361]
[1770960008112,0.004,1942.8,1942.3,1.78412361]
[1770960008307,0.004,1942.9,1942.3,1.78412361]
[1770960008511,0.004,1942.9,1942.4,7.05616678]
[1770960008732,2.41138267,1943.1,1942.4,7.05616678]
[1770960008733,0.004,1942.8,1942.4,7.05616678]
[1770960008932,0.004,1942.9,1942.4,7.05616678]
[1770960009118,0.004,1942.9,1942.5,1.28700128]
[1770960010402,0.004,1942.8,1942.5,1.28700128]
[1770960010817,0.004,1942.7,1942.5,1.28700128]
[1770960011134,0.49338267,1942.8,1942.1,5.14892692]
[1770960011322,0.004,1942.8,1942.3,0.4969898]
[1770960011528,0.004,1942.8,1942.4,7.05616678]
[1770960011829,0.004,1942.8,1942.5,0.4969898]
[1770960012236,0.002,1943.0,1942.5,0.4969898]
[1770960012433,0.004,1942.9,1942.5,0.4969898]
[1770960012730,0.002,1943.0,1942.6,7.05616678]
[1770960012731,0.006,1943.0,1942.6,7.05616678]
[1770960012916,0.002,1943.0,1942.6,7.05616678]
[1770960013114,0.48938267,1943.2,1942.6,0.4969898]
[1770960013336,0.002,1943.3,1942.6,2.8169898]
[1770960013541,0.002,1943.3,1942.7,7.05616678]
[1770960013833,0.002,1943.3,1942.8,0.4969898]
[1770960015627,0.002,1943.3,1942.9,1.28673632]
[1770960016216,0.002,1943.2,1942.9,1.28673632]
[1770960016638,0.002,1943.2,1942.8,1.28674998]
[1770960017036,0.002,1943.2,1942.8,1.78373978]
[1770960017240,0.002,1943.2,1942.9,7.05616678]
[1770960017435,0.002,1943.2,1942.9,6.55917698]
[1770960017741,0.002,1943.2,1943.1,1.28660388]
[1770960018324,0.002,1943.2,1943.0,1.2866207]
[1770960018520,0.002,1943.2,1942.8,5.14709802]
[1770960018747,0.49138267,1943.2,1942.8,1.28680255]
[1770960019712,0.49138267,1943.2,1942.7,5.14734572]
[1770960022540,0.002,1943.2,1942.7,5.14734572]
[1770960022715,0.48938267,1943.9,1943.0,7.04963548]
[1770960022918,6.55264568,1943.7,1943.0,2.329]
[1770960023232,0.48938267,1943.6,1942.9,2.329]
[1770960023613,0.48938267,1943.6,1942.7,5.64433552]
[1770960023614,0.48938267,1943.4,1942.7,5.14734572]
[1770960028740,0.48938267,1943.4,1942.8,0.001]
[1770960029051,0.49138267,1943.3,1942.8,0.001]
[1770960036856,6.55264568,1943.0,1942.7,0.001]
[1770960037046,0.46601629,1942.9,1942.7,0.001]
[1770960038034,6.55264568,1943.2,1942.4,0.001]
[1770960038035,0.46601629,1942.7,1942.4,0.001]
[1770960039554,0.46601629,1942.5,1942.0,0.001]
[1770960041827,6.55264568,1942.8,1942.1,0.49029229]
[1770960042032,0.46601629,1942.9,1942.1,0.49029229]
[1770960042446,0.46601629,1942.9,1942.2,7.04293797]
[1770960042726,0.46601629,1942.9,1942.3,1.28713381]
[1770960043149,1.75276007,1942.9,1942.3,1.28713381]
[1770960043527,0.46601629,1942.9,1942.3,1.28713381]
[1770960046734,1.75275862,1942.9,1942.3,1.28713381]
[1770960046935,0.46601629,1942.8,1942.3,1.28713381]
[1770960047863,0.46601629,1942.8,1942.1,1.28726636]
[1770960048078,0.46601629,1942.7,1942.1,1.28726636]
[1770960048667,0.46601629,1942.6,1942.1,1.28726636]
[1770960048875,1.905,1942.7,1942.1,1.28726636]
[1770960049370,1.905,1942.7,1942.2,0.49029229]
[1770960050587,1.905,1942.7,1942.3,1.28713381]
[1770960051145,1.905,1942.7,1942.3,1.7774261]
[1770960052287,2.37201629,1943.1,1942.3,1.7774261]
[1770960052483,1.906,1943.1,1942.3,1.7774261]
[1770960052683,0.46601629,1943.0,1942.3,1.7774261]
[1770960053256,1.906,1943.1,1942.4,7.04293797]
[1770960053460,1.906,1943.1,1942.5,0.49029229]
[1770960054083,0.002,1943.1,1942.7,0.49029229]
[1770960054673,0.002,1943.1,1942.8,1.77709484]
[1770960054891,0.002,1943.3,1942.9,0.49029229]
[1770960055791,0.002,1943.3,1943.0,7.04293797]
[1770960056685,0.002,1943.3,1943.1,1.28660388]
[1770960057193,0.002,1943.3,1942.7,1.28680255]
[1770960057194,0.46801629,1943.3,1942.7,1.28680255]
[1770960057682,0.46801629,1943.3,1942.6,4.11222011]
[1770960057893,0.46801629,1943.3,1942.6,1.28692782]
[1770960059061,0.46601629,1943.1,1942.5,1.28695441]
[1770960059258,0.002,1943.3,1942.6,0.49029229]
[1770960059478,0.46801629,1943.3,1942.6,0.49029229]
[1770960059999,1.75450116,1943.3,1942.6,0.49029229]
[1770960060166,1.75450116,1943.3,1942.5,1.28695441]
[1770960060167,0.46601629,1943.2,1942.5,1.28695441]
[1770960060485,0.47407115,1943.1,1942.4,1.28806156]
[1770960060670,0.47407115,1943.1,1942.4,0.001]
[1770960060997,0.47407115,1942.9,1942.4,1.28806493]
[1770960062461,0.47407115,1942.9,1942.4,0.001]
[1770960063558,0.47407115,1943.1,1942.4,0.001]
[1770960063966,1.898,1943.2,1942.4,0.46341885]
[1770960064304,0.47407115,1943.1,1942.4,0.001]
[1770960065678,0.47407115,1942.7,1942.4,0.001]
[1770960067895,1.76100618,1942.6,1942.4,0.001]
[1770960068273,0.47407115,1942.5,1942.0,0.001]
[1770960069801,0.47407115,1942.3,1942.0,0.001]
[1770960070492,2.37607115,1942.3,1942.0,0.001]
[1770960071894,1.902,1942.3,1942.0,0.001]
[1770960072481,1.904,1942.4,1942.0,0.001]
[1770960073096,1.76110565,1942.5,1942.0,0.001]
[1770960073388,2.37807115,1942.4,1942.0,0.001]
[1770960076999,3.66515562,1942.4,1942.0,0.001]
[1770960077498,2.37807115,1942.4,1942.0,0.001]
[1770960077691,1.904,1942.4,1942.0,0.001]
[1770960078267,1.904,1942.4,1942.1,0.001]
[1770960079206,3.66514098,1942.4,1942.1,0.001]
[1770960080281,0.47407115,1942.3,1942.1,0.001]
[1770960080976,0.47407115,1942.3,1942.0,0.001]
[1770960081176,1.76124951,1942.3,1942.0,0.001]
[1770960083388,0.47407115,1942.2,1942.0,0.001]
[1770960085008,1.28717836,1942.3,1942.0,0.001]
[1770960085399,1.917,1942.2,1942.0,0.001]
[1770960088209,1.28717836,1942.3,1942.0,0.001]
[1770960088210,1.28710941,1942.4,1942.0,0.001]
[1770960088392,1.919,1942.3,1942.0,0.001]
[1770960090715,1.919,1942.3,1942.1,0.001]
[1770960091007,0.002,1942.2,1942.1,0.001]
[1770960099292,1.76080476,1942.7,1942.1,0.001]
[1770960099496,1.925,1942.6,1942.1,0.48406007]
[1770960100926,1.925,1942.6,1942.2,1.77026015]
[1770960101297,7.84812808,1942.8,1942.3,0.48306007]
[1770960101500,1.926,1942.7,1942.3,0.48306007]
[1770960102940,1.926,1942.7,1942.3,1.77014397]
[1770960103290,0.002,1942.8,1942.4,0.48306007]
[1770960104195,0.002,1942.5,1942.4,0.48306007]
[1770960104497,0.002,1942.6,1942.4,0.48306007]
[1770960105211,0.002,1942.8,1942.4,0.48306007]
[1770960105212,0.002,1942.8,1942.6,0.48306007]
[1770960105696,0.002,1943.1,1942.6,0.48306007]
[1770960107190,0.002,1943.1,1942.6,1.76993704]
[1770960108822,7.03520314,1943.1,1942.5,1.28694626]
[1770960109198,7.03520314,1943.1,1942.5,1.77000633]
[1770960109628,0.002,1943.1,1942.6,0.48306007]
[1770960110332,0.002,1943.1,1942.7,0.48306007]
[1770960110931,0.002,1943.1,1942.8,6.5593128]
[1770960111221,0.002,1943.1,1942.9,0.48306007]
[1770960111817,0.002,1943.1,1943.0,1.76973016]
[1770960112535,0.002,1943.3,1943.1,0.48306007]
[1770960112732,1.923,1943.6,1943.1,0.48306007]
[1770960113114,0.002,1943.7,1943.3,0.48306007]